[Event "Titled Tuesday Blitz May 30 Early 2023"]
[White "Antonova, Nadezhda"]
[Black "Srdanovic, Jovana"]
[WhiteFideId "14700182"]
[BlackFideId "954810"]
[WhiteElo "1799"]
[BlackElo "2169"]
[Result "0-1"]
[Round "06"]
[TimeControl "180+2"]
[Date "2023.05.30"]
[WhiteClock "0:00:02"]
[BlackClock "0:00:16"]

1. Nf3 {[%clk 0:02:39]}  d5 {[%clk 0:02:59]} 2. b3 {[%clk 0:02:39]}  c5 {[%clk 0:02:54]} 3. e3 {[%clk 0:02:39]}  Bg4 {[%clk 0:02:54]} 4. Bb2 {[%clk 0:02:38]}  e6 {[%clk 0:02:53]} 5. h3 {[%clk 0:02:37]}  Bxf3 {[%clk 0:02:53]} 6. Qxf3 {[%clk 0:02:37]}  a6 {[%clk 0:02:54]} 7. c4 {[%clk 0:02:26]}  Nf6 {[%clk 0:02:51]} 8. cxd5 {[%clk 0:02:22]}  Nxd5 {[%clk 0:02:40]} 9. Be2 {[%clk 0:02:14]}  Nb4 {[%clk 0:02:38]} 10. Na3 {[%clk 0:02:10]}  N8c6 {[%clk 0:02:24]} 11. O-O {[%clk 0:02:06]}  Nd3 {[%clk 0:02:19]} 12. Bxd3 {[%clk 0:01:48]}  Qxd3 {[%clk 0:02:20]} 13. Nc4 {[%clk 0:01:45]}  Rd8 {[%clk 0:01:38]} 14. Rfd1 {[%clk 0:01:28]}  f6 {[%clk 0:01:28]} 15. Qg3 {[%clk 0:01:10]}  e5 {[%clk 0:01:03]} 16. Qg4 {[%clk 0:00:53]}  Qd7 {[%clk 0:01:02]} 17. Qh5+ {[%clk 0:00:44]}  Qf7 {[%clk 0:01:02]} 18. Qg4 {[%clk 0:00:16]}  Be7 {[%clk 0:00:57]} 19. f4 {[%clk 0:00:15]}  exf4 {[%clk 0:00:54]} 20. Qxf4 {[%clk 0:00:14]}  O-O {[%clk 0:00:53]} 21. d4 {[%clk 0:00:13]}  cxd4 {[%clk 0:00:50]} 22. exd4 {[%clk 0:00:12]}  b5 {[%clk 0:00:47]} 23. Ne3 {[%clk 0:00:07]}  Bd6 {[%clk 0:00:47]} 24. Qg4 {[%clk 0:00:05]}  Ne7 {[%clk 0:00:41]} 25. d5 {[%clk 0:00:04]}  Bc5 {[%clk 0:00:39]} 26. Re1 {[%clk 0:00:02]}  Nxd5 {[%clk 0:00:36]} 27. Bd4 {[%clk 0:00:02]}  Nxe3 {[%clk 0:00:21]} 28. Bxe3 {[%clk 0:00:03]}  Bxe3+ {[%clk 0:00:19]} 29. Rxe3 {[%clk 0:00:04]}  Qa7 {[%clk 0:00:19]} 30. Re1 {[%clk 0:00:04]}  Rde8 {[%clk 0:00:19]} 31. Qf3 {[%clk 0:00:04]}  Rxe3 {[%clk 0:00:18]} 32. Qxe3 {[%clk 0:00:04]}  Qc7 {[%clk 0:00:17]} 33. Qe6+ {[%clk 0:00:04]}  Kh8 {[%clk 0:00:18]} 34. Qxa6 {[%clk 0:00:05]}  Qc5+ {[%clk 0:00:17]} 35. Kh1 {[%clk 0:00:04]}  h6 {[%clk 0:00:16]} 36. Qe6 {[%clk 0:00:04]}  Rc8 {[%clk 0:00:16]} 37. Qe3 {[%clk 0:00:04]}  Qxe3 {[%clk 0:00:15]} 38. Rxe3 {[%clk 0:00:04]}  Rc2 {[%clk 0:00:16]} 39. a3 {[%clk 0:00:03]}  Ra2 {[%clk 0:00:15]} 40. Re8+ {[%clk 0:00:03]}  Kh7 {[%clk 0:00:15]} 41. Rb8 {[%clk 0:00:04]}  Rxa3 {[%clk 0:00:15]} 42. Rxb5 {[%clk 0:00:04]}  Ra2 {[%clk 0:00:15]} 43. Rb8 {[%clk 0:00:03]}  Rb2 {[%clk 0:00:16]} 44. b4 {[%clk 0:00:02]}  Rb1+ {[%clk 0:00:16]} 45. Kh2 {[%clk 0:00:02]}  Kg6 {[%clk 0:00:17]} 46. Kg3 {[%clk 0:00:02]}  h5 {[%clk 0:00:18]} 47. Kf3 {[%clk 0:00:03]}  Rb2 {[%clk 0:00:18]} 48. b5 {[%clk 0:00:02]}  h4 {[%clk 0:00:18]} 49. b6 {[%clk 0:00:02]}  Rb3+ {[%clk 0:00:19]} 50. Kg4 {[%clk 0:00:02]}  Rg3+ {[%clk 0:00:19]} 51. Kxh4 {[%clk 0:00:02]}  Rxg2 {[%clk 0:00:20]} 52. b7 {[%clk 0:00:02]}  Rb2 {[%clk 0:00:20]} 53. Kg4 {[%clk 0:00:02]}  Rb4+ {[%clk 0:00:20]} 54. Kg3 {[%clk 0:00:02]}  Rb3+ {[%clk 0:00:21]} 55. Kg4 {[%clk 0:00:03]}  Rb4+ {[%clk 0:00:21]} 56. Kg3 {[%clk 0:00:03]}  Rb1 {[%clk 0:00:22]} 57. Kg2 {[%clk 0:00:02]}  Rb2+ {[%clk 0:00:22]} 58. Kg3 {[%clk 0:00:03]}  Kf5 {[%clk 0:00:23]} 59. h4 {[%clk 0:00:03]}  Rb3+ {[%clk 0:00:23]} 60. Kg2 {[%clk 0:00:02]}  g6 {[%clk 0:00:23]} 61. Kh2 {[%clk 0:00:02]}  Rb2+ {[%clk 0:00:24]} 62. Kg3 {[%clk 0:00:02]}  Rb3+ {[%clk 0:00:24]} 63. Kg2 {[%clk 0:00:02]}  Rb2+ {[%clk 0:00:24]} 64. Kg3 {[%clk 0:00:02]}  Rb1 {[%clk 0:00:25]} 65. Kg2 {[%clk 0:00:02]}  Rb6 {[%clk 0:00:24]} 66. Kg3 {[%clk 0:00:02]}  Rb3+ {[%clk 0:00:23]} 67. Kg2 {[%clk 0:00:02]}  Kg4 {[%clk 0:00:20]} 68. h5 {[%clk 0:00:01]}  Rb2+ {[%clk 0:00:19]} 69. Kg1 {[%clk 0:00:01]}  Kg3 {[%clk 0:00:19]} 70. Kf1 {[%clk 0:00:01]}  Kf3 {[%clk 0:00:19]} 71. Ke1 {[%clk 0:00:01]}  gxh5 {[%clk 0:00:17]} 72. Rf8 {[%clk 0:00:01]}  Rxb7 {[%clk 0:00:16]} 73. Rxf6+ {[%clk 0:00:02]}  Kg4 {[%clk 0:00:16]} 74. Kf2 {[%clk 0:00:02]}  Rb2+ {[%clk 0:00:15]} 75. Kg1 {[%clk 0:00:02]}  Rb1+ {[%clk 0:00:15]} 76. Kg2 {[%clk 0:00:02]}  Rb2+ {[%clk 0:00:15]} 77. Kg1 {[%clk 0:00:03]}  h4 {[%clk 0:00:14]} 78. Rg6+ {[%clk 0:00:03]}  Kh3 {[%clk 0:00:15]} 79. Rg8 {[%clk 0:00:02]}  Rb3 {[%clk 0:00:15]} 80. Rf8 {[%clk 0:00:01]}  Rg3+ {[%clk 0:00:15]} 81. Kh1 {[%clk 0:00:01]}  Re3 {[%clk 0:00:16]} 82. Rh8 {[%clk 0:00:02]}  Re1# {[%clk 0:00:16]} 0-1


[Site "https://www.chess.com"]

[Event "Titled Tuesday Blitz May 30 Early 2023"]
[White "Sanhueza, Cristian"]
[Black "Lonoff, Marc"]
[WhiteFideId "116815"]
[BlackFideId "2001349"]
[WhiteElo "2174"]
[BlackElo "2140"]
[Result "1-0"]
[Round "06"]
[TimeControl "180+2"]
[Date "2023.05.30"]
[WhiteClock "0:01:24"]
[BlackClock "0:00:00"]

1. e4 {[%clk 0:03:00]}  e6 {[%clk 0:02:58]} 2. d4 {[%clk 0:03:00]}  d5 {[%clk 0:02:58]} 3. Nd2 {[%clk 0:03:01]}  Nc6 {[%clk 0:02:57]} 4. Ngf3 {[%clk 0:03:00]}  Nf6 {[%clk 0:02:57]} 5. e5 {[%clk 0:03:00]}  Nd7 {[%clk 0:02:57]} 6. Nb3 {[%clk 0:03:00]}  a5 {[%clk 0:02:55]} 7. a4 {[%clk 0:03:00]}  b6 {[%clk 0:02:52]} 8. Bb5 {[%clk 0:02:57]}  Na7 {[%clk 0:02:52]} 9. Be2 {[%clk 0:02:55]}  c5 {[%clk 0:02:50]} 10. c3 {[%clk 0:02:55]}  Nc6 {[%clk 0:02:50]} 11. Bg5 {[%clk 0:02:45]}  f6 {[%clk 0:02:38]} 12. exf6 {[%clk 0:02:46]}  Nxf6 {[%clk 0:02:37]} 13. O-O {[%clk 0:02:43]}  Bd6 {[%clk 0:02:23]} 14. Bb5 {[%clk 0:02:41]}  Bd7 {[%clk 0:02:15]} 15. Re1 {[%clk 0:02:35]}  Qe7 {[%clk 0:02:07]} 16. Bxc6 {[%clk 0:02:32]}  Bxc6 {[%clk 0:02:07]} 17. Ne5 {[%clk 0:02:31]}  Bd7 {[%clk 0:01:36]} 18. Nxd7 {[%clk 0:02:00]}  Kxd7 {[%clk 0:01:36]} 19. Bxf6 {[%clk 0:02:01]}  gxf6 {[%clk 0:01:32]} 20. dxc5 {[%clk 0:01:54]}  bxc5 {[%clk 0:01:29]} 21. Qe2 {[%clk 0:01:54]}  Rhb8 {[%clk 0:01:17]} 22. Nc1 {[%clk 0:01:40]}  Rb7 {[%clk 0:00:56]} 23. c4 {[%clk 0:01:37]}  d4 {[%clk 0:00:51]} 24. Nd3 {[%clk 0:01:27]}  Rg8 {[%clk 0:00:42]} 25. Qh5 {[%clk 0:01:26]}  Rg5 {[%clk 0:00:31]} 26. Qh3 {[%clk 0:01:24]}  Rb8 {[%clk 0:00:25]} 27. Re2 {[%clk 0:01:24]}  Rbg8 {[%clk 0:00:24]} 28. g3 {[%clk 0:01:24]}  h5 {[%clk 0:00:23]} 29. Rae1 {[%clk 0:01:24]}  f5 {[%clk 0:00:05]} 30. Qg2 {[%clk 0:01:25]}  Kc7 {[%clk 0:00:00]} 31. Rxe6 {[%clk 0:01:24]} 1-0


[Site "https://www.chess.com"]

[Event "Titled Tuesday Blitz May 30 Early 2023"]
[White "vlajkovicS"]
[Black "Makhmudov, Shukhrat"]
[BlackFideId "14200775"]
[WhiteElo "2637"]
[BlackElo "2135"]
[Result "0-1"]
[Round "06"]
[TimeControl "180+2"]
[Date "2023.05.30"]
[WhiteClock "0:01:35"]
[BlackClock "0:00:46"]

1. Nf3 {[%clk 0:03:00]}  d5 {[%clk 0:02:56]} 2. b3 {[%clk 0:02:59]}  Nf6 {[%clk 0:02:56]} 3. Bb2 {[%clk 0:03:00]}  c5 {[%clk 0:02:55]} 4. e3 {[%clk 0:03:00]}  Nc6 {[%clk 0:02:55]} 5. h3 {[%clk 0:02:59]}  e6 {[%clk 0:02:55]} 6. d3 {[%clk 0:02:59]}  Be7 {[%clk 0:02:55]} 7. Nbd2 {[%clk 0:03:00]}  O-O {[%clk 0:02:55]} 8. Be2 {[%clk 0:03:01]}  a6 {[%clk 0:02:55]} 9. O-O {[%clk 0:03:02]}  b5 {[%clk 0:02:53]} 10. c4 {[%clk 0:03:02]}  bxc4 {[%clk 0:02:52]} 11. dxc4 {[%clk 0:03:03]}  d4 {[%clk 0:02:50]} 12. exd4 {[%clk 0:03:02]}  cxd4 {[%clk 0:02:50]} 13. a3 {[%clk 0:03:03]}  d3 {[%clk 0:02:50]} 14. Ne4 {[%clk 0:02:56]}  dxe2 {[%clk 0:02:46]} 15. Qxe2 {[%clk 0:02:57]}  Bb7 {[%clk 0:02:38]} 16. Rad1 {[%clk 0:02:56]}  Qb6 {[%clk 0:02:33]} 17. Nxf6+ {[%clk 0:02:56]}  Bxf6 {[%clk 0:02:33]} 18. Bxf6 {[%clk 0:02:56]}  gxf6 {[%clk 0:02:33]} 19. b4 {[%clk 0:02:55]}  Ne7 {[%clk 0:02:30]} 20. Nd4 {[%clk 0:02:49]}  Ng6 {[%clk 0:02:24]} 21. c5 {[%clk 0:02:49]}  Qc7 {[%clk 0:02:24]} 22. f4 {[%clk 0:02:49]}  Nxf4 {[%clk 0:02:19]} 23. Qg4+ {[%clk 0:02:48]}  Ng6 {[%clk 0:02:19]} 24. h4 {[%clk 0:02:48]}  f5 {[%clk 0:02:11]} 25. Qh3 {[%clk 0:02:36]}  Qe5 {[%clk 0:01:44]} 26. h5 {[%clk 0:02:35]}  Ne7 {[%clk 0:01:33]} 27. Qh4 {[%clk 0:02:30]}  Qg7 {[%clk 0:01:10]} 28. Rf2 {[%clk 0:02:24]}  Nc6 {[%clk 0:01:08]} 29. Rd3 {[%clk 0:02:17]}  Ne5 {[%clk 0:01:04]} 30. Rg3 {[%clk 0:02:15]}  Ng4 {[%clk 0:01:04]} 31. Nxf5 {[%clk 0:02:15]}  exf5 {[%clk 0:01:00]} 32. Rxf5 {[%clk 0:02:16]}  Qd4+ {[%clk 0:00:58]} 33. Re3 {[%clk 0:01:39]}  Qxe3+ {[%clk 0:00:53]} 34. Kf1 {[%clk 0:01:40]}  Qd3+ {[%clk 0:00:47]} 35. Kg1 {[%clk 0:01:35]}  Qxf5 {[%clk 0:00:46]} 0-1


[Site "https://www.chess.com"]

[Event "Titled Tuesday Blitz May 30 Early 2023"]
[White "Gatterer, Florian"]
[Black "Baches Garcia, Guillermo"]
[WhiteFideId "811688"]
[BlackFideId "2209764"]
[WhiteElo "2221"]
[BlackElo "2512"]
[Result "1/2-1/2"]
[Round "06"]
[TimeControl "180+2"]
[Date "2023.05.30"]
[WhiteClock "0:00:32"]
[BlackClock "0:00:57"]

1. b3 {[%clk 0:02:25]}  d5 {[%clk 0:02:57]} 2. Bb2 {[%clk 0:02:24]}  Bf5 {[%clk 0:02:55]} 3. g3 {[%clk 0:02:24]}  e6 {[%clk 0:02:55]} 4. Bg2 {[%clk 0:02:25]}  Nf6 {[%clk 0:02:55]} 5. d3 {[%clk 0:02:25]}  h6 {[%clk 0:02:54]} 6. Nd2 {[%clk 0:02:25]}  Bh7 {[%clk 0:02:53]} 7. e4 {[%clk 0:02:25]}  Be7 {[%clk 0:02:50]} 8. Qe2 {[%clk 0:02:25]}  O-O {[%clk 0:02:48]} 9. f4 {[%clk 0:02:25]}  a5 {[%clk 0:02:45]} 10. a3 {[%clk 0:02:24]}  dxe4 {[%clk 0:02:36]} 11. Nxe4 {[%clk 0:02:20]}  Nxe4 {[%clk 0:02:35]} 12. Bxe4 {[%clk 0:02:07]}  Bxe4 {[%clk 0:02:34]} 13. Qxe4 {[%clk 0:02:07]}  Bf6 {[%clk 0:02:30]} 14. O-O-O {[%clk 0:01:42]}  Bxb2+ {[%clk 0:02:22]} 15. Kxb2 {[%clk 0:01:42]}  Nc6 {[%clk 0:02:21]} 16. Nf3 {[%clk 0:01:41]}  a4 {[%clk 0:02:16]} 17. b4 {[%clk 0:01:40]}  Qd6 {[%clk 0:02:14]} 18. Ne5 {[%clk 0:01:35]}  Rad8 {[%clk 0:02:06]} 19. Nxc6 {[%clk 0:01:27]}  bxc6 {[%clk 0:02:03]} 20. Qc4 {[%clk 0:01:26]}  Rb8 {[%clk 0:01:55]} 21. Ka1 {[%clk 0:01:23]}  Rb5 {[%clk 0:01:51]} 22. Rhe1 {[%clk 0:01:20]}  Rfb8 {[%clk 0:01:47]} 23. d4 {[%clk 0:01:17]}  Rd5 {[%clk 0:01:40]} 24. c3 {[%clk 0:01:16]}  Rd8 {[%clk 0:01:36]} 25. Re5 {[%clk 0:01:08]}  Qd7 {[%clk 0:01:26]} 26. Kb2 {[%clk 0:00:56]}  Rb8 {[%clk 0:01:25]} 27. Rxd5 {[%clk 0:00:54]}  cxd5 {[%clk 0:01:19]} 28. Qe2 {[%clk 0:00:47]}  Qc6 {[%clk 0:01:13]} 29. Rc1 {[%clk 0:00:44]}  Qb6 {[%clk 0:01:11]} 30. Qd3 {[%clk 0:00:39]}  c5 {[%clk 0:01:10]} 31. dxc5 {[%clk 0:00:38]}  Qxc5 {[%clk 0:01:10]} 32. Qd4 {[%clk 0:00:39]}  Qc6 {[%clk 0:01:08]} 33. c4 {[%clk 0:00:38]}  dxc4 {[%clk 0:01:06]} 34. Qxc4 {[%clk 0:00:38]}  Qf3 {[%clk 0:01:01]} 35. Qc3 {[%clk 0:00:36]}  Qd5 {[%clk 0:00:59]} 36. Qc4 {[%clk 0:00:32]}  Qf3 {[%clk 0:00:58]} 37. Qc3 {[%clk 0:00:32]}  Qd5 {[%clk 0:00:57]} 38. Qc4 {[%clk 0:00:32]}  Qf3 {[%clk 0:00:57]} 1/2-1/2


[Site "https://www.chess.com"]

[Event "Titled Tuesday Blitz May 30 Early 2023"]
[White "Ljukin, Sergei"]
[Black "Dubreuil, Julien"]
[WhiteFideId "14102200"]
[BlackFideId "621285"]
[WhiteElo "2312"]
[BlackElo "2322"]
[Result "1/2-1/2"]
[Round "06"]
[TimeControl "180+2"]
[Date "2023.05.30"]
[WhiteClock "0:00:07"]
[BlackClock "0:00:06"]

1. e4 {[%clk 0:02:54]}  c5 {[%clk 0:02:59]} 2. Nf3 {[%clk 0:02:54]}  Nc6 {[%clk 0:03:00]} 3. d4 {[%clk 0:02:54]}  cxd4 {[%clk 0:03:00]} 4. Nxd4 {[%clk 0:02:55]}  g6 {[%clk 0:03:01]} 5. c4 {[%clk 0:02:55]}  Bg7 {[%clk 0:03:01]} 6. Be3 {[%clk 0:02:55]}  Nf6 {[%clk 0:03:01]} 7. Nc3 {[%clk 0:02:55]}  O-O {[%clk 0:03:01]} 8. Be2 {[%clk 0:02:55]}  Nxd4 {[%clk 0:03:00]} 9. Bxd4 {[%clk 0:02:55]}  d6 {[%clk 0:03:01]} 10. O-O {[%clk 0:02:54]}  a5 {[%clk 0:02:59]} 11. Rc1 {[%clk 0:02:48]}  Bd7 {[%clk 0:02:59]} 12. b3 {[%clk 0:02:43]}  Bc6 {[%clk 0:02:59]} 13. f3 {[%clk 0:02:41]}  Nd7 {[%clk 0:02:59]} 14. Be3 {[%clk 0:02:39]}  Nc5 {[%clk 0:02:59]} 15. Nd5 {[%clk 0:02:25]}  Be5 {[%clk 0:02:58]} 16. f4 {[%clk 0:02:14]}  Bg7 {[%clk 0:02:56]} 17. Bf3 {[%clk 0:02:05]}  e6 {[%clk 0:02:56]} 18. Nc3 {[%clk 0:02:00]}  Bxc3 {[%clk 0:02:56]} 19. Bxc5 {[%clk 0:01:42]}  dxc5 {[%clk 0:02:47]} 20. Rxc3 {[%clk 0:01:41]}  a4 {[%clk 0:02:36]} 21. Qc2 {[%clk 0:01:24]}  axb3 {[%clk 0:02:34]} 22. axb3 {[%clk 0:01:13]}  Qd4+ {[%clk 0:02:05]} 23. Kh1 {[%clk 0:01:11]}  Rfd8 {[%clk 0:02:05]} 24. Rd1 {[%clk 0:00:58]}  Qf6 {[%clk 0:00:26]} 25. Rxd8+ {[%clk 0:00:55]}  Rxd8 {[%clk 0:00:24]} 26. Qc1 {[%clk 0:00:55]}  Bxe4 {[%clk 0:00:17]} 27. h3 {[%clk 0:00:45]}  Bxf3 {[%clk 0:00:16]} 28. Rxf3 {[%clk 0:00:45]}  Rd4 {[%clk 0:00:15]} 29. Kh2 {[%clk 0:00:40]}  h5 {[%clk 0:00:15]} 30. Qe3 {[%clk 0:00:33]}  h4 {[%clk 0:00:14]} 31. Qf2 {[%clk 0:00:29]}  Kg7 {[%clk 0:00:12]} 32. Qe3 {[%clk 0:00:28]}  b6 {[%clk 0:00:13]} 33. Qf2 {[%clk 0:00:29]}  Qd8 {[%clk 0:00:11]} 34. Qe3 {[%clk 0:00:27]}  Rd2 {[%clk 0:00:11]} 35. Qe5+ {[%clk 0:00:23]}  Kg8 {[%clk 0:00:11]} 36. Qe3 {[%clk 0:00:14]}  Qd4 {[%clk 0:00:10]} 37. Qe1 {[%clk 0:00:11]}  Qb2 {[%clk 0:00:09]} 38. Qf1 {[%clk 0:00:08]}  Qd4 {[%clk 0:00:09]} 39. Qe1 {[%clk 0:00:08]}  Rd1 {[%clk 0:00:09]} 40. Qxh4 {[%clk 0:00:08]}  Qg1+ {[%clk 0:00:09]} 41. Kg3 {[%clk 0:00:08]}  Qe1+ {[%clk 0:00:08]} 42. Kg4 {[%clk 0:00:07]}  Kg7 {[%clk 0:00:05]} 43. Qxe1 {[%clk 0:00:06]}  Rxe1 {[%clk 0:00:06]} 44. Rd3 {[%clk 0:00:05]}  Rb1 {[%clk 0:00:05]} 45. Kf3 {[%clk 0:00:05]}  Kf6 {[%clk 0:00:05]} 46. g4 {[%clk 0:00:05]}  Ke7 {[%clk 0:00:05]} 47. h4 {[%clk 0:00:06]}  Rh1 {[%clk 0:00:04]} 48. Kg3 {[%clk 0:00:06]}  Rg1+ {[%clk 0:00:04]} 49. Kh2 {[%clk 0:00:06]}  Rf1 {[%clk 0:00:04]} 50. Kg3 {[%clk 0:00:06]}  Rg1+ {[%clk 0:00:05]} 51. Kf3 {[%clk 0:00:06]}  Rh1 {[%clk 0:00:05]} 52. Kg3 {[%clk 0:00:07]}  Rg1+ {[%clk 0:00:06]} 1/2-1/2


[Site "https://www.chess.com"]

[Event "Titled Tuesday Blitz May 30 Early 2023"]
[White "Toncheva, Nadya"]
[Black "KVAIDAN"]
[WhiteFideId "2924056"]
[WhiteElo "2101"]
[BlackElo "2319"]
[Result "1-0"]
[Round "06"]
[TimeControl "180+2"]
[Date "2023.05.30"]
[WhiteClock "0:00:09"]
[BlackClock "0:00:59"]

1. e4 {[%clk 0:02:53]}  e5 {[%clk 0:02:58]} 2. Nf3 {[%clk 0:02:53]}  d5 {[%clk 0:02:59]} 3. Nxe5 {[%clk 0:02:51]}  Bd6 {[%clk 0:02:58]} 4. d4 {[%clk 0:02:39]}  dxe4 {[%clk 0:02:58]} 5. Nc4 {[%clk 0:02:37]}  Nf6 {[%clk 0:02:58]} 6. Nxd6+ {[%clk 0:02:37]}  Qxd6 {[%clk 0:02:58]} 7. Be3 {[%clk 0:02:36]}  Nc6 {[%clk 0:02:56]} 8. c3 {[%clk 0:02:35]}  Nd5 {[%clk 0:02:54]} 9. Nd2 {[%clk 0:02:34]}  f5 {[%clk 0:02:53]} 10. Nc4 {[%clk 0:02:25]}  Qg6 {[%clk 0:02:49]} 11. Qa4 {[%clk 0:02:10]}  O-O {[%clk 0:02:47]} 12. O-O-O {[%clk 0:02:02]}  Bd7 {[%clk 0:02:43]} 13. Qb3 {[%clk 0:02:01]}  Be6 {[%clk 0:02:40]} 14. g3 {[%clk 0:01:50]}  Nb6 {[%clk 0:02:33]} 15. Qb5 {[%clk 0:01:20]}  Qf7 {[%clk 0:02:12]} 16. Ne5 {[%clk 0:01:10]}  Nxe5 {[%clk 0:02:10]} 17. Qxe5 {[%clk 0:01:08]}  Bxa2 {[%clk 0:02:08]} 18. g4 {[%clk 0:00:44]}  f4 {[%clk 0:02:03]} 19. Bd2 {[%clk 0:00:45]}  Bb3 {[%clk 0:02:02]} 20. Re1 {[%clk 0:00:43]}  a5 {[%clk 0:01:57]} 21. h4 {[%clk 0:00:38]}  a4 {[%clk 0:01:57]} 22. Qc5 {[%clk 0:00:29]}  a3 {[%clk 0:01:55]} 23. bxa3 {[%clk 0:00:29]}  Na4 {[%clk 0:01:51]} 24. Qb4 {[%clk 0:00:29]}  e3 {[%clk 0:01:49]} 25. fxe3 {[%clk 0:00:27]}  fxe3 {[%clk 0:01:49]} 26. Rxe3 {[%clk 0:00:25]}  b6 {[%clk 0:01:39]} 27. Bd3 {[%clk 0:00:24]}  c5 {[%clk 0:01:39]} 28. dxc5 {[%clk 0:00:20]}  bxc5 {[%clk 0:01:39]} 29. Qe4 {[%clk 0:00:20]}  g6 {[%clk 0:01:37]} 30. Rf1 {[%clk 0:00:19]}  Qd5 {[%clk 0:01:28]} 31. Qxd5+ {[%clk 0:00:18]}  Bxd5 {[%clk 0:01:27]} 32. Re7 {[%clk 0:00:13]}  Rxf1+ {[%clk 0:01:22]} 33. Bxf1 {[%clk 0:00:14]}  Nb6 {[%clk 0:01:19]} 34. Bh6 {[%clk 0:00:13]}  Bf7 {[%clk 0:01:18]} 35. Rb7 {[%clk 0:00:11]}  Nd5 {[%clk 0:01:17]} 36. Bc4 {[%clk 0:00:10]}  Rd8 {[%clk 0:01:17]} 37. Bg5 {[%clk 0:00:09]}  Rc8 {[%clk 0:01:15]} 38. Rxf7 {[%clk 0:00:09]}  Kxf7 {[%clk 0:01:15]} 39. Bxd5+ {[%clk 0:00:09]}  Ke8 {[%clk 0:01:15]} 40. c4 {[%clk 0:00:10]}  Rc7 {[%clk 0:01:14]} 41. Kb2 {[%clk 0:00:10]}  h5 {[%clk 0:01:12]} 42. gxh5 {[%clk 0:00:10]}  gxh5 {[%clk 0:01:12]} 43. a4 {[%clk 0:00:10]}  Kd7 {[%clk 0:01:08]} 44. Kb3 {[%clk 0:00:11]}  Kc8 {[%clk 0:01:08]} 45. a5 {[%clk 0:00:11]}  Ra7 {[%clk 0:01:05]} 46. Ka4 {[%clk 0:00:12]}  Kb8 {[%clk 0:01:05]} 47. Kb5 {[%clk 0:00:12]}  Rg7 {[%clk 0:01:03]} 48. a6 {[%clk 0:00:12]}  Ka7 {[%clk 0:01:03]} 49. Be3 {[%clk 0:00:10]}  Rg4 {[%clk 0:01:00]} 50. Bxc5+ {[%clk 0:00:11]}  Kb8 {[%clk 0:01:01]} 51. Bd6+ {[%clk 0:00:11]}  Ka7 {[%clk 0:01:01]} 52. Bc5+ {[%clk 0:00:10]}  Kb8 {[%clk 0:01:02]} 53. a7+ {[%clk 0:00:11]}  Kc7 {[%clk 0:01:02]} 54. a8=Q {[%clk 0:00:11]}  Rxc4 {[%clk 0:01:01]} 55. Qb7+ {[%clk 0:00:11]}  Kd8 {[%clk 0:01:01]} 56. Qe7+ {[%clk 0:00:09]}  Kc8 {[%clk 0:01:01]} 57. Be6+ {[%clk 0:00:09]}  Kb8 {[%clk 0:01:02]} 58. Bd6+ {[%clk 0:00:08]}  Ka8 {[%clk 0:01:01]} 59. Bd5+ {[%clk 0:00:08]}  Rc6 {[%clk 0:00:59]} 60. Bxc6# {[%clk 0:00:09]} 1-0


[Site "https://www.chess.com"]

[Event "Titled Tuesday Blitz May 30 Early 2023"]
[White "Fernandez Garcia, Gumersindo"]
[Black "Blokhin, Sofia"]
[WhiteFideId "24516740"]
[BlackFideId "4508190"]
[WhiteElo "2093"]
[BlackElo "1994"]
[Result "1-0"]
[Round "06"]
[TimeControl "180+2"]
[Date "2023.05.30"]
[WhiteClock "0:01:43"]
[BlackClock "0:00:04"]

1. g4 {[%clk 0:03:00]}  d5 {[%clk 0:02:55]} 2. Bg2 {[%clk 0:03:01]}  e6 {[%clk 0:02:53]} 3. c4 {[%clk 0:03:01]}  c6 {[%clk 0:02:52]} 4. Nc3 {[%clk 0:03:01]}  h6 {[%clk 0:02:50]} 5. h4 {[%clk 0:03:01]}  Nf6 {[%clk 0:02:49]} 6. g5 {[%clk 0:03:01]}  hxg5 {[%clk 0:02:48]} 7. hxg5 {[%clk 0:03:01]}  Rxh1 {[%clk 0:02:49]} 8. Bxh1 {[%clk 0:03:02]}  Nfd7 {[%clk 0:02:45]} 9. d3 {[%clk 0:03:00]}  Be7 {[%clk 0:02:43]} 10. Nf3 {[%clk 0:03:00]}  Na6 {[%clk 0:02:39]} 11. a3 {[%clk 0:02:58]}  b6 {[%clk 0:02:35]} 12. Bf4 {[%clk 0:02:56]}  g6 {[%clk 0:02:29]} 13. b4 {[%clk 0:02:54]}  Nc7 {[%clk 0:02:11]} 14. Qd2 {[%clk 0:02:53]}  Bb7 {[%clk 0:02:04]} 15. Bg2 {[%clk 0:02:47]}  a5 {[%clk 0:02:01]} 16. Rb1 {[%clk 0:02:46]}  axb4 {[%clk 0:01:55]} 17. axb4 {[%clk 0:02:47]}  Na6 {[%clk 0:01:54]} 18. b5 {[%clk 0:02:41]}  Nb4 {[%clk 0:01:41]} 19. Kf1 {[%clk 0:02:36]}  c5 {[%clk 0:01:25]} 20. Qb2 {[%clk 0:02:22]}  Bf8 {[%clk 0:01:21]} 21. Nd1 {[%clk 0:02:15]}  Ra2 {[%clk 0:01:08]} 22. Qh8 {[%clk 0:02:14]}  Qe7 {[%clk 0:00:59]} 23. Nc3 {[%clk 0:02:10]}  Ra3 {[%clk 0:00:51]} 24. Ne5 {[%clk 0:02:04]}  Nc2 {[%clk 0:00:11]} 25. Nxd7 {[%clk 0:02:00]}  Kxd7 {[%clk 0:00:05]} 26. cxd5 {[%clk 0:01:58]}  Nd4 {[%clk 0:00:04]} 27. dxe6+ {[%clk 0:01:56]}  Nxe6 {[%clk 0:00:04]} 28. Bxb7 {[%clk 0:01:53]}  Nxf4 {[%clk 0:00:04]} 29. Bc6+ {[%clk 0:01:54]}  Kc7 {[%clk 0:00:04]} 30. e3 {[%clk 0:01:49]}  Rxc3 {[%clk 0:00:03]} 31. Qxc3 {[%clk 0:01:46]}  Ne6 {[%clk 0:00:04]} 32. Ra1 {[%clk 0:01:45]}  Qxg5 {[%clk 0:00:04]} 33. Ra7+ {[%clk 0:01:43]}  Kd6 {[%clk 0:00:04]} 34. Rd7# {[%clk 0:01:43]} 1-0


[Site "https://www.chess.com"]

[Event "Titled Tuesday Blitz May 30 Early 2023"]
[White "Dinu, Dumitru-Daniel"]
[Black "agvania123"]
[WhiteFideId "1208403"]
[WhiteElo "2240"]
[BlackElo "2256"]
[Result "1-0"]
[Round "06"]
[TimeControl "180+2"]
[Date "2023.05.30"]
[WhiteClock "0:02:35"]
[BlackClock "0:01:54"]

1. e4 {[%clk 0:03:00]}  d5 {[%clk 0:03:00]} 2. exd5 {[%clk 0:03:00]}  Qxd5 {[%clk 0:03:00]} 3. Nf3 {[%clk 0:03:00]}  Nf6 {[%clk 0:03:00]} 4. Nc3 {[%clk 0:02:59]}  Qd8 {[%clk 0:02:59]} 5. d4 {[%clk 0:03:00]}  Bg4 {[%clk 0:02:59]} 6. h3 {[%clk 0:02:59]}  Bxf3 {[%clk 0:02:59]} 7. Qxf3 {[%clk 0:02:59]}  c6 {[%clk 0:02:59]} 8. Be3 {[%clk 0:02:57]}  e6 {[%clk 0:03:00]} 9. Bd3 {[%clk 0:02:56]}  Bb4 {[%clk 0:02:57]} 10. g4 {[%clk 0:02:54]}  Nd5 {[%clk 0:02:55]} 11. Bd2 {[%clk 0:02:51]}  Qa5 {[%clk 0:02:43]} 12. O-O {[%clk 0:02:42]}  Nxc3 {[%clk 0:02:43]} 13. bxc3 {[%clk 0:02:41]}  Bxc3 {[%clk 0:02:42]} 14. Bxc3 {[%clk 0:02:41]}  Qxc3 {[%clk 0:02:43]} 15. Rab1 {[%clk 0:02:41]}  b6 {[%clk 0:02:38]} 16. d5 {[%clk 0:02:37]}  O-O {[%clk 0:01:56]} 17. Bxh7+ {[%clk 0:02:36]}  Kxh7 {[%clk 0:01:53]} 18. Qxc3 {[%clk 0:02:35]}  cxd5 {[%clk 0:01:54]} 1-0


[Site "https://www.chess.com"]